fUSD/lending_fUSD_20240514
["ID","MTS","AMOUNT","RATE_DAILY","PERIOD"]
[326975000,1715668241674,-151.0,0.0001293,2]
[326975001,1715668241683,-151.0,0.0001293,2]
[326975002,1715668241692,-151.0,0.0001293,2]
[326975003,1715668241702,-156.826648,0.0001293,2]
[326975004,1715668241711,-151.0,0.0001293,2]
[326975005,1715668241723,-163.926218,0.00012972,2]
[326975006,1715668241732,-287.106516,0.00012972,2]
[326975007,1715668241741,-626.334235,0.00012972,2]
[326975008,1715668241750,-302.860267,0.00012972,2]
[326975009,1715668241759,-500.0,0.0001299,2]
[326975010,1715668241768,-778.81,0.0001299,2]
[326975011,1715668241777,-500.0,0.0001299,2]
[326975012,1715668241786,-675.87,0.0001299,2]
[326975013,1715668241796,-500.0,0.0001299,2]
[326975014,1715668241805,-500.0,0.0001299,2]
[326975015,1715668241814,-500.0,0.0001299,2]
[326975016,1715668241823,-500.0,0.0001299,2]
[326975017,1715668241833,-500.0,0.0001299,2]
[326975018,1715668241842,-500.0,0.0001299,2]
[326975019,1715668241851,-240.68665281,0.0001299,2]
[326975020,1715668241860,-500.0,0.0001299,2]
[326975021,1715668241869,-500.0,0.0001299,2]
[326975022,1715668241879,-426.39,0.0001299,2]
[326975023,1715668241888,-500.0,0.0001299,2]
[326975024,1715668241897,-496.89,0.0001299,2]
[326975025,1715668241906,-500.0,0.0001299,2]
[326975026,1715668241916,-756.0,0.00012991,2]
[326975027,1715668241926,-151.0,0.00012991,2]
[326975028,1715668241936,-151.0,0.00012991,2]
[326975029,1715668241947,-151.0,0.00012991,2]
[326975030,1715668241957,-154.606767,0.00012991,2]
[326975031,1715668241971,-151.0,0.00012991,2]
[326975032,1715668241980,-151.0,0.00012991,2]
[326975033,1715668241989,-151.0,0.00012991,2]
[326975034,1715668241998,-151.0,0.00012991,2]
[326975035,1715668242007,-151.0,0.00012991,2]
[326975036,1715668242016,-282.29632,0.00012991,2]
[326975037,1715668242025,-151.0,0.00012991,2]
[326975038,1715668242035,-151.0,0.00012991,2]
[326975039,1715668242044,-151.0,0.00012991,2]
[326975040,1715668242053,-151.0,0.00012991,2]
[326975041,1715668242062,-151.0,0.00012991,2]
[326975042,1715668242071,-151.0,0.00012991,2]
[326975043,1715668242080,-249.403466,0.00012991,2]
[326975044,1715668242089,-249.403466,0.00012991,2]
[326975045,1715668242099,-151.0,0.00012991,2]
[326975046,1715668242108,-281.355255,0.00012991,2]
[326975047,1715668242117,-151.0,0.00012991,2]
[326975048,1715668242126,-151.0,0.00012991,2]
[326975049,1715668242135,-341.829172,0.00012991,2]
[326975050,1715668242144,-341.829172,0.00012991,2]
[326975051,1715668242153,-151.0,0.00012991,2]
[326975052,1715668242162,-241.227765,0.00012991,2]
[326975053,1715668242171,-151.0,0.00012991,2]
[326975054,1715668242181,-151.0,0.00012991,2]
[326975055,1715668242190,-151.0,0.00012991,2]
[326975056,1715668242199,-151.0,0.00012991,2]
[326975057,1715668242208,-151.0,0.00012991,2]
[326975058,1715668242223,-151.0,0.00012991,2]
[326975059,1715668242232,-151.0,0.00012991,2]
[326975060,1715668242241,-151.0,0.00012991,2]
[326975061,1715668242250,-151.0,0.00012991,2]
[326975062,1715668242259,-151.0,0.00012991,2]
[326975063,1715668242268,-151.0,0.00012991,2]
[326975064,1715668242276,-151.0,0.00012991,2]
[326975065,1715668242285,-151.0,0.00012991,2]
[326975066,1715668242294,-324.835717,0.00012991,2]
[326975067,1715668242302,-324.835717,0.00012991,2]
[326975068,1715668242311,-191.800682,0.00012991,2]
[326975069,1715668242320,-191.800682,0.00012991,2]
[326975070,1715668242330,-188.950659,0.00012991,2]
[326975071,1715668242339,-318.278293,0.00012991,2]
[326975073,1715668242348,-318.278293,0.00012991,2]
[326975075,1715668242357,-450.963435,0.00012991,2]
[326975077,1715668242367,-151.0,0.00012991,2]
[326975079,1715668242376,-151.0,0.00012991,2]
[326975081,1715668242385,-450.963435,0.00012991,2]
[326975083,1715668242394,-2721.934665,0.00012991,2]
[326975084,1715668242403,-2320.3933439,0.00012991,2]
[326975085,1715668242413,-151.0,0.00012991,2]
[326975086,1715668242423,-1918.8520227,0.00012991,2]
[326975087,1715668242432,-1517.3107016,0.00012991,2]
[326975088,1715668242441,-1115.7693805,0.00012991,2]
[326975089,1715668242450,-222.983498,0.00012991,2]
[326975090,1715668242459,-405.959053,0.00012991,2]
[326975091,1715668242475,-405.959053,0.00012991,2]
[326975092,1715668242484,-151.0,0.00012991,2]
[326975093,1715668242493,-151.0,0.00012991,2]
[326975095,1715668242503,-151.0,0.00012991,2]
[326975097,1715668242515,-151.0,0.00012991,2]
[326975099,1715668242526,-151.0,0.00012991,2]
[326975101,1715668242537,-151.0,0.00012991,2]
[326975103,1715668242550,-151.0,0.00012991,2]
[326975104,1715668242560,-249.032214,0.00012991,2]
[326975105,1715668242570,-151.0,0.00012991,2]
[326975106,1715668242580,-249.032214,0.00012991,2]
[326975107,1715668242590,-151.0,0.00012991,2]
[326975108,1715668242599,-151.0,0.00012991,2]
[326975109,1715668242608,-151.0,0.00012991,2]
[326975110,1715668242617,-151.0,0.00012991,2]
[326975111,1715668242626,-151.0,0.00012991,2]
[326975112,1715668242636,-255.880724,0.00012991,2]
[326975113,1715668242645,-255.880724,0.00012991,2]
[326975114,1715668242654,-359.26303,0.00012991,2]
[326975115,1715668242664,-151.0,0.00012991,2]
[326975116,1715668242673,-151.0,0.00012991,2]
[326975117,1715668242683,-359.26303,0.00012991,2]
[326975118,1715668242693,-151.0,0.00012991,2]
[326975119,1715668242703,-151.0,0.00012991,2]
[326975120,1715668242713,-151.0,0.00012991,2]
[326975121,1715668242725,-526.291064,0.00012991,2]
[326975122,1715668242735,-167.608638,0.00012991,2]
[326975123,1715668242745,-526.291064,0.00012991,2]
[326975124,1715668242755,-167.608638,0.00012991,2]
[326975125,1715668242764,-151.0,0.00012991,2]
[326975126,1715668242774,-1132.863402,0.00012991,2]
[326975127,1715668242783,-151.0,0.00012991,2]
[326975128,1715668242793,-1132.863402,0.00012991,2]
[326975129,1715668242803,-151.0,0.00012991,2]
[326975130,1715668242812,-151.0,0.00012991,2]
[326975131,1715668242823,-151.0,0.00012991,2]
[326975132,1715668242832,-151.0,0.00012991,2]
[326975133,1715668242842,-151.0,0.00012991,2]
[326975134,1715668242852,-151.0,0.00012991,2]
[326975135,1715668242861,-151.0,0.00012991,2]
[326975136,1715668242871,-308.836958,0.00012991,2]
[326975137,1715668242882,-151.0,0.00012991,2]
[326975138,1715668242892,-308.836958,0.00012991,2]
[326975139,1715668242902,-154.089135,0.00012991,2]
[326975140,1715668242912,-152.735548,0.00012991,2]
[326975141,1715668242921,-151.0,0.00012991,2]
[326975142,1715668242931,-48146.620503,0.00012991,2]
[326975143,1715668242941,-41044.0041716,0.00012991,2]
[326975144,1715668242950,-21760.90534095,0.00012991,2]
[326975165,1715668243361,-3145.12011062,0.00012991,2]
[326975166,1715668243372,-298.42245538,0.00012991,2]
[326975170,1715668243403,-512.307232,0.00012991,2]
[326975172,1715668243415,-288.12424113,0.00012991,2]
[326975174,1715668243426,-7936.50846022,0.00012991,2]
[326975176,1715668243435,-26838.7715089,0.00012991,2]
[326975178,1715668243445,-19736.1551775,0.00012991,2]
[326975180,1715668243454,-151.0,0.00012991,2]
[326975182,1715668243468,-151.0,0.00012991,2]
[326975184,1715668243476,-151.0,0.00012991,2]
[326975186,1715668243486,-151.0,0.00012991,2]
[326975188,1715668243495,-2360.6258208,0.00012996,2]
[326975190,1715668243505,-155.0,0.00012998,2]
[326975192,1715668243514,-155.56097142,0.00012998,2]
[326975194,1715668243523,-265.18505592,0.00012998,2]
[326975196,1715668243533,-204.39823741,0.00012998,2]
[326975198,1715668243544,-187.00835459,0.00012998,2]
[326975200,1715668243553,-157.01082105,0.00012998,2]
[326975202,1715668243562,-208.13920154,0.00012998,2]
[326975204,1715668243571,-237.03062149,0.00012998,2]
[326975206,1715668243580,-326.40225063,0.00012998,2]
[326975208,1715668243590,-500.0,0.00012998,2]
[326975210,1715668243600,-500.0,0.00012998,2]
[326975212,1715668243609,-477.18,0.00012998,2]
[326975214,1715668243618,-500.0,0.00012998,2]
[326975216,1715668243627,-4272.63704827,0.00012999,2]
[326975218,1715668243636,-151.0,0.00012999,2]
[326975220,1715668243646,-151.0,0.00012999,2]
[326975222,1715668243655,-151.0,0.00012999,2]
[326975224,1715668243664,-500.0,0.00012999,2]
[326975226,1715668243673,-451.82277345,0.00012999,2]
[326975228,1715668243683,-151.0,0.00012999,2]
[326975230,1715668243692,-2057.1534025,0.00012999,2]
[326975232,1715668243701,-1753.6809843,0.00012999,2]
[326975234,1715668243710,-1450.2085661,0.00012999,2]
[326975236,1715668243719,-318.278293,0.00012999,2]
[326975238,1715668243728,-318.278293,0.00012999,2]
[326975240,1715668243737,-151.0,0.00012999,2]
[326975242,1715668243746,-151.0,0.00012999,2]
[326975244,1715668243755,-151.0,0.00012999,2]
[326975246,1715668243764,-405.959053,0.00012999,2]
[326975248,1715668243773,-405.959053,0.00012999,2]
[326975250,1715668243783,-778.81,0.00012999,2]
[326975252,1715668243791,-778.81,0.00012999,2]
[326975254,1715668243800,-778.81,0.00012999,2]
[326975256,1715668243810,-778.81,0.00012999,2]
[326975258,1715668243819,-778.81,0.00012999,2]
[326975260,1715668243828,-778.81,0.00012999,2]
[326975262,1715668243838,-151.0,0.00012999,2]
[326975264,1715668243846,-778.81,0.00012999,2]
[326975267,1715668243856,-778.81,0.00012999,2]
[326975270,1715668243865,-778.81,0.00012999,2]
[326975273,1715668243874,-778.81,0.00012999,2]
[326975276,1715668243883,-778.81,0.00012999,2]
[326975279,1715668243892,-778.81,0.00012999,2]
[326975281,1715668243902,-778.81,0.00012999,2]
[326975283,1715668243910,-778.81,0.00012999,2]
[326975285,1715668243919,-778.81,0.00012999,2]
[326975287,1715668243928,-778.81,0.00012999,2]
[326975289,1715668243937,-778.81,0.00012999,2]
[326975291,1715668243946,-778.81,0.00012999,2]
[326975293,1715668243956,-151.0,0.00012999,2]
[326975294,1715668243964,-778.81,0.00012999,2]
[326975296,1715668243974,-778.81,0.00012999,2]
[326975298,1715668243983,-779.0480024,0.00012999,2]
[326975300,1715668243991,-500.0,0.00012999,2]
[326975301,1715668244000,-500.0,0.00012999,2]
[326975303,1715668244009,-151.0,0.00012999,2]
[326975305,1715668244018,-500.0,0.00012999,2]
[326975307,1715668244027,-500.0,0.00012999,2]
[326975308,1715668244036,-500.0,0.00012999,2]
[326975310,1715668244045,-500.0,0.00012999,2]
[326975312,1715668244054,-500.0,0.00012999,2]
[326975314,1715668244063,-500.0,0.00012999,2]
[326975315,1715668244072,-500.0,0.00012999,2]
[326975317,1715668244082,-500.0,0.00012999,2]
[326975319,1715668244090,-675.87,0.00012999,2]
[326975320,1715668244099,-500.0,0.00012999,2]
[326975322,1715668244110,-675.87,0.00012999,2]
[326975324,1715668244119,-500.0,0.00012999,2]
[326975326,1715668244128,-675.87,0.00012999,2]
[326975327,1715668244138,-500.0,0.00012999,2]
[326975329,1715668244147,-675.87,0.00012999,2]
[326975331,1715668244156,-500.0,0.00012999,2]
[326975333,1715668244165,-675.87,0.00012999,2]
[326975334,1715668244174,-500.0,0.00012999,2]
[326975336,1715668244183,-675.87,0.00012999,2]
[326975337,1715668244192,-269.99473915,0.00012999,2]
[326975338,1715668244201,-675.87,0.00012999,2]
[326975339,1715668244210,-151.0,0.00012999,2]
[326975340,1715668244219,-675.87,0.00012999,2]
[326975341,1715668244228,-675.87,0.00012999,2]
[326975342,1715668244238,-675.87,0.00012999,2]
[326975343,1715668244247,-675.87,0.00012999,2]
[326975344,1715668244256,-675.87,0.00012999,2]
[326975345,1715668244264,-675.87,0.00012999,2]
[326975346,1715668244274,-675.87,0.00012999,2]
[326975347,1715668244283,-675.87,0.00012999,2]
[326975348,1715668244292,-675.87,0.00012999,2]
[326975349,1715668244301,-675.87,0.00012999,2]
[326975350,1715668244310,-675.87,0.00012999,2]
[326975351,1715668244319,-675.87,0.00012999,2]
[326975352,1715668244329,-676.0,0.00012999,2]
[326975353,1715668244338,-151.0,0.00012999,2]
[326975354,1715668244347,-151.0,0.00012999,2]
[326975355,1715668244356,-151.0,0.00012999,2]
[326975356,1715668244365,-249.032214,0.00012999,2]
[326975357,1715668244374,-151.0,0.00012999,2]
[326975358,1715668244383,-249.032214,0.00012999,2]
[326975359,1715668244393,-151.0,0.00012999,2]
[326975360,1715668244402,-151.0,0.00012999,2]
[326975361,1715668244411,-151.0,0.00012999,2]
[326975362,1715668244420,-267.481126,0.00012999,2]
[326975363,1715668244430,-500.0,0.00012999,2]
[326975364,1715668244439,-500.0,0.00012999,2]
[326975365,1715668244448,-500.0,0.00012999,2]
[326975366,1715668244457,-500.0,0.00012999,2]
[326975367,1715668244472,-500.0,0.00012999,2]
[326975368,1715668244483,-500.0,0.00012999,2]
[326975369,1715668244493,-500.0,0.00012999,2]
[326975370,1715668244502,-500.0,0.00012999,2]
[326975371,1715668244512,-500.0,0.00012999,2]
[326975372,1715668244522,-500.0,0.00012999,2]
[326975373,1715668244531,-500.0,0.00012999,2]
[326975374,1715668244540,-500.0,0.00012999,2]
[326975375,1715668244552,-500.0,0.00012999,2]
[326975376,1715668244562,-626.00786609,0.00012999,2]
[326975377,1715668244571,-500.0,0.00012999,2]
[326975378,1715668244580,-629.73,0.00012999,2]
[326975379,1715668244589,-151.0,0.00012999,2]
[326975380,1715668244598,-500.0,0.00012999,2]
[326975381,1715668244607,-500.0,0.00012999,2]
[326975382,1715668244616,-500.0,0.00012999,2]
[326975383,1715668244626,-500.0,0.00012999,2]
[326975384,1715668244635,-500.0,0.00012999,2]
[326975385,1715668244645,-500.0,0.00012999,2]
[326975386,1715668244654,-500.0,0.00012999,2]
[326975387,1715668244663,-500.0,0.00012999,2]
[326975388,1715668244672,-500.0,0.00012999,2]
[326975389,1715668244681,-500.0,0.00012999,2]
[326975390,1715668244690,-500.0,0.00012999,2]
[326975391,1715668244700,-500.0,0.00012999,2]
[326975392,1715668244709,-255.880724,0.00012999,2]
[326975393,1715668244718,-500.0,0.00012999,2]
[326975394,1715668244727,-500.0,0.00012999,2]
[326975395,1715668244737,-500.0,0.00012999,2]
[326975396,1715668244746,-608.92,0.00012999,2]
[326975397,1715668244755,-255.880724,0.00012999,2]
[326975399,1715668244764,-151.0,0.00012999,2]
[326975401,1715668244773,-359.26303,0.00012999,2]
[326975402,1715668244782,-151.0,0.00012999,2]
[326975404,1715668244791,-359.26303,0.00012999,2]
[326975406,1715668244800,-151.0,0.00012999,2]
[326975408,1715668244810,-151.0,0.00012999,2]
[326975410,1715668244818,-151.0,0.00012999,2]
[326975412,1715668244827,-526.291064,0.00012999,2]
[326975414,1715668244837,-167.608638,0.00012999,2]
[326975415,1715668244845,-526.291064,0.00012999,2]
[326975417,1715668244854,-167.608638,0.00012999,2]
[326975419,1715668244863,-151.0,0.00012999,2]
[326975421,1715668244872,-1132.863402,0.00012999,2]
[326975423,1715668244881,-152.879896,0.00012999,2]
[326975424,1715668244890,-1132.863402,0.00012999,2]
[326975426,1715668244899,-151.0,0.00012999,2]
[326975428,1715668244908,-151.0,0.00012999,2]
[326975430,1715668244917,-151.0,0.00012999,2]
[326975432,1715668244927,-151.0,0.00012999,2]
[326975434,1715668244939,-500.0,0.00012999,2]
[326975436,1715668244948,-500.0,0.00012999,2]
[326975437,1715668244957,-151.0,0.00012999,2]
[326975438,1715668244969,-166.12,0.00012999,2]
[326975439,1715668244982,-500.0,0.00012999,2]
[326975440,1715668244991,-151.0,0.00012999,2]
[326975441,1715668245000,-151.0,0.00012999,2]
[326975442,1715668245009,-318.2,0.00012999,2]
[326975443,1715668245018,-308.836958,0.00012999,2]
[326975444,1715668245027,-151.0,0.00012999,2]
[326975445,1715668245036,-308.836958,0.00012999,2]
[326975446,1715668245046,-151.0,0.00012999,2]
[326975448,1715668245055,-283.3,0.00012999,2]
[326975449,1715668245064,-151.0,0.00012999,2]
[326975451,1715668245072,-151.0,0.00012999,2]
[326975453,1715668245081,-151.0,0.00012999,2]
[326975455,1715668245090,-500.0,0.00012999,2]
[326975457,1715668245099,-500.0,0.00012999,2]
[326975459,1715668245109,-500.0,0.00012999,2]
[326975461,1715668245118,-500.0,0.00012999,2]
[326975463,1715668245127,-500.0,0.00012999,2]
[326975465,1715668245136,-500.0,0.00012999,2]
[326975467,1715668245145,-500.0,0.00012999,2]
[326975469,1715668245155,-500.0,0.00012999,2]
[326975489,1715668245336,-500.0,0.00012999,2]
[326975491,1715668245347,-500.0,0.00012999,2]
[326975493,1715668245356,-500.0,0.00012999,2]
[326975495,1715668245366,-500.0,0.00012999,2]
[326975497,1715668245375,-500.0,0.00012999,2]
[326975500,1715668245384,-500.0,0.00012999,2]
[326975503,1715668245393,-500.0,0.00012999,2]
[326975506,1715668245402,-500.0,0.00012999,2]
[326975509,1715668245412,-500.0,0.00012999,2]
[326975511,1715668245420,-535.32047788,0.00012999,2]
[326975514,1715668245430,-151.0,0.00012999,2]
[326975517,1715668245439,-500.0,0.00012999,2]
[326975520,1715668245448,-383.78,0.00012999,2]
[326975522,1715668245458,-500.0,0.00012999,2]
[326975524,1715668245470,-500.0,0.00012999,2]
[326975526,1715668245479,-500.0,0.00012999,2]
[326975528,1715668245488,-500.0,0.00012999,2]
[326975530,1715668245497,-500.0,0.00012999,2]
[326975532,1715668245508,-500.0,0.00012999,2]
[326975534,1715668245517,-500.0,0.00012999,2]
[326975536,1715668245527,-500.0,0.00012999,2]
[326975538,1715668245537,-500.0,0.00012999,2]
[326975540,1715668245548,-500.0,0.00012999,2]
[326975542,1715668245557,-12399.89263381,0.00013,2]
[326975565,1715668245702,-1112.972,0.0001289,2]
[326975570,1715668245741,-281.934,0.0001289,2]
[326975571,1715668245751,-151.0,0.00012929,2]
[326975573,1715668245760,-886.066,0.00012929,2]
[326975575,1715668245771,-267.240077,0.00012929,2]
[326975576,1715668245781,-158.031315,0.0001293,2]
[326975578,1715668245790,-1153.306077,0.0001293,2]
[326975579,1715668245799,-500.0,0.00012999,2]
[326975580,1715668245808,-500.0,0.00012999,2]
[326975581,1715668245818,-500.0,0.00012999,2]
[326975582,1715668245827,-500.0,0.00012999,2]
[326975583,1715668245836,-500.0,0.00012999,2]
[326975585,1715668245846,-356.25999999,0.00012999,2]
[326975587,1715668245855,-24680.16253101,0.00013,2]
[326975589,1715668245867,-6175.4,0.00013,2]
[326975592,1715668246143,-1164.82,0.00012881,2]
[326975593,1715668246155,-843.4,0.00012881,2]
[326975594,1715668246168,-2063.17985902,0.00012881,2]
[326975595,1715668246178,-1067.813,0.0001289,2]
[326975596,1715668246187,-1153.306077,0.00012991,2]
[326975597,1715668246197,-21011.66079529,0.00013,2]
[326975598,1715668246243,-1151.981946,0.00013,2]
[326975599,1715668246254,-579.71999999,0.00013,2]
[326975600,1715668246266,-200148.32901724,0.00013,2]
[326975601,1715668246277,-189821.68125292,0.00013,2]
[326975602,1715668246288,-31196.28708159,0.00013,2]
[326975603,1715668246299,-7422.1201178,0.00013,2]
[326975604,1715668246311,-19168.42144909,0.00013,2]
[326975605,1715668246324,-636415.72086506,0.00013,2]
[326975606,1715668246333,-440617.16809301,0.00013,2]
[326975607,1715668246344,-619.95,0.00013,2]
[326975608,1715668246369,-274.733615,0.00013,2]
[326975609,1715668246380,-8460.15693833,0.00013,2]
[326975610,1715668246391,-1608.10647546,0.00013,2]
[326975611,1715668246402,-620.62,0.00013,2]
[326975612,1715668246413,-359.54568102,0.00013,2]
[326975613,1715668246425,-1000.54565817,0.00013,2]
[326975614,1715668246436,-615.81090661,0.00013,2]
[326975615,1715668246448,-1554.20548708,0.00013,2]
[326975616,1715668246636,-1923.774,0.00012878,2]
[326975617,1715668246645,-1153.306077,0.00012929,2]
[326975618,1715668246655,-1153.306077,0.0001293,2]
[326975619,1715668246664,-250.0,0.00012986,2]
[326975620,1715668246673,-7875.16635001,0.00013,2]
[326975621,1715668246684,-3517.03041825,0.00013,2]
[326975622,1715668246695,-500.14999976,0.00013,2]
[326975623,1715668246705,-1448.325,0.00013,2]
[326975624,1715668246717,-1546.25,0.00013,2]
[326975625,1715668246729,-365.47731451,0.00013,2]
[326975626,1715668246740,-792.73224283,0.00013,2]
[326975627,1715668246751,-517.00781386,0.00013,2]
[326975628,1715668246762,-248720.00000004,0.00013,2]
[326975629,1715668246780,-40356.28674562,0.00013,2]
[326975630,1715668246791,-104373.36139533,0.00013,2]
[326975631,1715668246802,-12357.0,0.00013,2]
[326975632,1715668246813,-1685.47391358,0.00013,2]
[326975633,1715668246824,-147981.07875388,0.00013,2]
[326975634,1715668246834,-856.20926424,0.00013,2]
[326975635,1715668246845,-14515.00000005,0.00013,2]
[326975636,1715668246855,-6160.99999999,0.00013,2]
[326975637,1715668263018,-300.0,0.00012,4]
[326975638,1715668263800,-819.03105142,0.00012169,2]
[326975639,1715668264282,-626.334235,0.00012169,2]
[326975641,1715668275138,-155.23469938,0.00011698,2]
[326975660,1715668469829,150.0,6.94e-05,2]
[326975661,1715668469850,150.0,6.94e-05,2]
[326975662,1715668469870,150.0,6.94e-05,2]
[326975663,1715668469890,150.0,6.94e-05,2]
[326975664,1715668469913,150.0,6.94e-05,2]
[326975665,1715668469933,223.51823841,6.94e-05,2]
[326975666,1715668469955,8246.30764657,6.94e-05,2]
[326975718,1715669278733,-1204.97401448,8.987e-05,2]
[326975719,1715669278756,-326.5426325,8.988e-05,2]
[326975720,1715669278778,-1999.47523704,8.988e-05,2]
[326975721,1715669278805,-207.2840544,8.988e-05,2]
[326975722,1715669278827,-150.0,9e-05,2]
[326975723,1715669278848,-150.0,9.973e-05,2]
[326975724,1715669278870,-150.0,9.999e-05,2]
[326975725,1715669278890,-15811.72406158,0.0001,2]
[326975740,1715669365956,-150.0,9.999e-05,2]
[326975741,1715669365978,-5119.48843667,0.0001,2]
[326975742,1715669365999,-153.77612288,0.0001,2]
[326975743,1715669366020,-204.49444067,0.00010904,2]
[326975744,1715669366042,-722.01,0.00010905,2]
[326975745,1715669366063,-3153.91,0.00010905,2]
[326975746,1715669366089,-300.0,0.00010927,2]
[326975747,1715669366111,-4845.38,0.00010959,2]
[326975748,1715669366133,-10000.0,0.00010959,2]
[326975749,1715669366154,-999.99,0.00010959,2]
[326975750,1715669366176,-210.0,0.00010999,2]
[326975751,1715669366199,-180.48,0.00011035,2]
[326975752,1715669366222,-870.9,0.00011064,2]
[326975753,1715669366243,-3089.57099978,0.00011064,2]
[326975763,1715669431859,-446.9,0.00011064,2]
[326975766,1715669431873,-6773.62900022,0.00011064,2]
[326975768,1715669431883,-409.50018805,0.00011064,2]
[326975770,1715669431893,-2355.51,0.00011075,2]
[326975772,1715669431904,-196.59,0.00011085,2]
[326975774,1715669431914,-250.0,0.00011086,2]
[326975775,1715669431924,-158.32,0.00011148,2]
[326975776,1715669431934,-500.0,0.00011165,2]
[326975777,1715669431943,-150.0,0.00011176,2]
[326975778,1715669431954,-187.2,0.00011181,2]
[326975779,1715669431963,-1388.93607691,0.00011191,2]
[326975780,1715669431974,-188.23392309,0.00011191,2]
[326975781,1715669431983,-158.32,0.000112,2]
[326975782,1715669431993,-131.21533795,0.00011253,2]
[326975783,1715669432004,-27.10466205,0.00011253,2]
[326975784,1715669432014,-158.32,0.00011306,2]
[326975785,1715669432023,-158.32,0.00011359,2]
[326975786,1715669432033,-158.32,0.00011412,2]
[326975787,1715669432042,-499.99,0.00011435,2]
[326975788,1715669432052,-158.32,0.00011465,2]
[326975789,1715669432061,-158.32,0.00011517,2]
[326975790,1715669432070,-158.32,0.0001157,2]
[326975791,1715669432080,-4351.85735854,0.00011598,2]
[326975792,1715669432108,-3595.78175172,0.00011598,2]
[326975793,1715669432119,-791.63952452,0.00011598,2]
[326975794,1715669432130,-503.022718,0.00011598,2]
[326975795,1715669432141,-7132.31094722,0.00011598,2]
[326975796,1715669432150,-158.32,0.00011623,2]
[326975797,1715669432159,-169.63,0.00011637,2]
[326975798,1715669432168,-158.32,0.00011676,2]
[326975799,1715669432177,-750.59667665,0.00011698,2]
[326975800,1715669432186,-158.32,0.00011729,2]
[326975801,1715669432195,-850.24,0.00011765,2]
[326975802,1715669432206,-622.29937613,0.00012,2]
[326975803,1715669432217,-368.36047548,0.00012,2]
[326975804,1715669432228,-5141.00196918,0.00012,2]
[326975805,1715669432307,-1718.69881709,0.00012,2]
[326975809,1715669437850,-1399.1369827,0.00012,2]
[326975812,1715669437860,-500.0,0.00012,2]
[326975814,1715669437870,-300.0,0.00012,4]
[326975817,1715669437880,-868.95,0.00012055,2]
[326975820,1715669437890,-421.22,0.00012055,2]
[326975822,1715669437899,-868.95,0.00012055,2]
[326975824,1715669437910,-868.95,0.00012055,2]
[326975826,1715669437920,-868.95,0.00012055,2]
[326975828,1715669437930,-868.95,0.00012055,2]
[326975830,1715669437939,-868.95,0.00012055,2]
[326975832,1715669437948,-868.95,0.00012055,2]
[326975834,1715669437960,-868.95,0.00012055,2]
[326975836,1715669437969,-347.86,0.00012055,2]
[326975838,1715669437978,-293.0,0.00012099,2]
[326975840,1715669437988,-700.0,0.000121,4]
[326975842,1715669437997,-1100.0,0.000122,4]
[326975844,1715669438007,-10000.0,0.00012249,2]
[326975846,1715669438016,-1400.0,0.000123,4]
[326975848,1715669438025,-313.40626709,0.00012348,2]
[326975850,1715669438034,-1800.0,0.000124,4]
[326975852,1715669438044,-927.1579,0.000125,2]